bitfinex-derivatives/quotes_ETHF0:USTF0_20250923
["timestamp","ask_amount","ask_price","bid_price","bid_amount"]
[1758648740354,1.18323,4171.6,4171.5,0.548]
[1758648740554,0.85728,4171.1,4171.0,0.97929]
[1758648740763,0.85728,4171.1,4171.0,1.53009]
[1758648740965,1.18328,4171.1,4171.0,0.5166]
[1758648741157,0.64095,4171.4,4171.3,0.4228]
[1758648741358,0.64095,4171.4,4171.3,0.7276]
[1758648741866,0.85725,4171.4,4171.3,0.7276]
[1758648743264,0.43125,4171.4,4171.3,0.7276]
[1758648743465,0.64085,4171.4,4171.3,0.7276]
[1758648743968,0.64085,4171.4,4171.3,1.15886]
[1758648744266,1.16328,4171.1,4171.0,0.5486]
[1758648744567,1.16328,4171.1,4171.0,0.334]
[1758648744862,0.732,4171.1,4171.0,0.5486]
[1758648745066,0.4253,4171.1,4171.0,0.9043]
[1758648745368,0.85658,4171.1,4171.0,0.9043]
[1758648746069,1.40770402,4171.1,4171.0,0.9043]
[1758648746270,1.71440402,4171.1,4171.0,0.9043]
[1758648746972,0.4253,4171.1,4171.0,1.33559]
[1758648747167,0.85658,4171.1,4171.0,0.9043]
[1758648747362,1.40774865,4171.1,4171.0,0.9043]
[1758648747564,1.71444865,4171.1,4171.0,0.682]
[1758648747871,1.40774865,4171.1,4171.0,0.9043]
[1758648748266,1.71444865,4171.1,4171.0,0.9043]
[1758648748465,1.40774865,4171.1,4171.0,0.9043]
[1758648748671,1.71444865,4171.1,4171.0,0.9043]
[1758648748961,1.40774865,4171.1,4171.0,0.9043]
[1758648749167,1.19204865,4171.1,4171.0,0.9043]
[1758648749368,1.71453805,4171.1,4171.0,0.9043]
[1758648749763,0.43131,4170.8,4170.7,3.5418]
[1758648749974,0.85661,4170.8,4170.7,3.9787]
[1758648750171,1.16331,4170.8,4170.7,0.334]
[1758648750478,0.64103,4169.7,4169.6,3.9787]
[1758648750678,0.43143,4169.7,4169.6,4.65614]
[1758648751068,0.43143,4169.7,4169.6,4.2247]
[1758648751373,0.64103,4169.7,4169.6,1.0169]
[1758648751562,0.85673,4169.7,4169.6,1.0169]
[1758648752167,0.85673,4169.7,4169.6,0.7709]
[1758648752366,0.64103,4169.7,4169.6,0.7709]
[1758648752975,0.85673,4169.7,4169.6,0.7709]
[1758648753271,0.732,4169.1,4169.0,0.334]
[1758648753467,0.43471131,4169.1,4169.0,0.9043]
[1758648754981,0.43145,4169.5,4169.4,0.2146]
[1758648755175,0.85675,4169.5,4169.4,0.5563]
[1758648755374,0.85678,4169.2,4169.1,0.334]
[1758648755573,1.08133999,4169.2,4169.1,0.5486]
[1758648755977,1.38803999,4169.2,4169.1,0.5486]
[1758648756178,1.38803999,4169.2,4169.1,0.334]
[1758648756580,1.38803999,4169.2,4169.1,0.5486]
[1758648761080,0.65603999,4169.2,4169.1,0.7709]
[1758648761268,0.86563999,4169.2,4169.1,0.7709]
[1758648761578,1.08133999,4169.2,4169.1,0.7709]
[1758648762077,1.38803999,4169.2,4169.0,3.3412]
[1758648762283,0.95655999,4169.1,4169.0,3.2078]
[1758648762486,0.85682,4168.8,4168.7,0.7946]
[1758648762678,1.08137999,4168.8,4168.7,1.0169]
[1758648762982,1.08137999,4168.8,4168.7,0.7709]
[1758648763777,0.65607999,4168.8,4168.7,0.7709]
[1758648764284,0.65607999,4168.8,4168.7,5.7709]
[1758648764676,0.64106,4169.4,4169.3,0.2146]
[1758648764983,1.38738293,4169.4,4169.3,0.5486]
[1758648765382,0.43149,4169.1,4169.0,0.1334]
[1758648765573,1.38741293,4169.1,4169.0,0.2146]
[1758648765983,1.08071293,4169.1,4169.0,0.682]
[1758648766686,1.08071293,4169.1,4169.0,0.9043]
[1758648767090,1.38741293,4169.1,4169.0,0.5486]
[1758648767389,0.94789,4168.1,4168.0,0.4369]
[1758648767586,0.65551293,4168.1,4167.9,4.10030319]
[1758648767786,0.43159,4168.1,4168.0,0.5342]
[1758648767981,0.65545311,4168.1,4168.0,0.7802]
[1758648768181,0.43159,4168.1,4168.0,0.7802]
[1758648768487,0.22382584,4168.1,4168.0,0.7802]
[1758648768790,0.43158,4168.2,4168.0,0.7802]
[1758648769291,0.43158,4168.2,4168.1,0.7709]
[1758648769492,0.22381344,4168.2,4168.1,0.7709]
[1758648769791,0.43157,4168.3,4168.2,0.7709]
[1758648770089,0.65535855,4168.3,4168.2,0.7709]
[1758648771090,0.86495855,4168.3,4168.2,0.7709]
[1758648771486,1.17165855,4168.3,4168.2,1.0169]
[1758648771880,1.38735855,4168.3,4168.2,0.4369]
[1758648777306,1.17165855,4168.3,4168.2,0.7409]
[1758648777503,0.65535855,4168.3,4168.2,0.7409]
[1758648777910,0.87835855,4168.3,4168.2,0.7409]
[1758648778216,1.19455855,4168.3,4168.2,0.7409]
[1758648778406,1.40675855,4168.3,4168.2,0.7409]
[1758648778910,0.22378855,4168.3,4168.2,1.17248]
[1758648779106,0.65535855,4168.3,4168.2,1.17248]
[1758648779507,0.65535855,4168.3,4168.2,0.7409]
[1758648779715,0.65535855,4168.3,4168.2,1.17248]
[1758648780116,0.65535855,4168.3,4168.2,0.7409]
[1758648780512,1.19455855,4168.3,4168.2,0.7409]
[1758648780807,1.19455855,4168.3,4168.2,1.41748]
[1758648780808,0.22378855,4168.3,4168.2,1.41748]
[1758648781018,0.22378855,4168.3,4168.2,6.41748]
[1758648781212,1.25335,4169.5,4169.4,0.435]
[1758648781411,1.25335,4169.5,4169.4,0.681]
[1758648782215,1.25335,4169.5,4169.4,0.246]
[1758648782614,1.25335,4169.5,4169.4,0.464]
[1758648782816,1.25335,4169.5,4169.4,0.681]
[1758648783115,1.25335,4169.5,4169.4,0.464]
[1758648783315,1.25335,4169.5,4169.4,0.246]
[1758648783515,0.43148,4169.2,4169.1,0.304]
[1758648783714,0.7514,4169.3,4169.2,0.739]
[1758648784013,0.223,4169.3,4169.2,0.739]
[1758648784220,0.7514,4169.3,4169.2,0.739]
[1758648784706,2.15638,4171.2,4170.0,0.4314]
[1758648784707,0.3162,4170.3,4170.0,0.4314]
[1758648784910,1.0936511,4170.2,4170.1,0.984]
[1758648785110,0.5392,4170.2,4170.1,0.984]
[1758648785414,1.18278,4170.2,4170.1,0.246]
[1758648785615,1.18278,4170.2,4169.8,3.2078]
[1758648785616,0.122,4170.0,4169.8,3.2078]
[1758648785806,0.7514,4169.9,4169.8,3.4258]
[1758648786004,0.7514,4169.9,4169.8,3.6718]
[1758648786416,0.7514,4169.9,4169.8,3.4258]
[1758648786618,0.5392,4169.9,4169.8,4.1928]
[1758648786808,0.3162,4169.9,4169.8,4.1928]
[1758648787009,0.7514,4170.2,4170.1,0.435]
[1758648787209,0.4382,4170.5,4170.1,0.739]
[1758648787410,0.97057,4170.3,4170.2,0.739]
[1758648787611,0.5392,4170.3,4170.2,0.739]
[1758648788115,0.7514,4170.3,4170.2,0.435]
[1758648789413,0.5572,4170.0,4169.9,0.218]
[1758648789717,0.8734,4170.0,4169.9,0.463]
[1758648789920,1.30481,4170.0,4169.9,0.68]
[1758648790116,1.30481,4170.0,4169.9,0.984]
[1758648790317,1.30481,4170.0,4169.9,0.739]
[1758648790519,1.30481,4170.0,4169.9,0.68]
[1758648791113,0.96866,4169.5,4169.4,0.4386]
[1758648791320,1.31446,4169.5,4169.4,0.4386]
[1758648791519,1.19047,4169.3,4169.2,3.2078]
[1758648791711,1.19047,4169.3,4169.2,3.4528]
[1758648791913,1.19047,4169.3,4169.2,3.2078]
[1758648792221,0.5401,4168.8,4168.7,3.9769]
[1758648792417,0.5401,4168.8,4168.7,4.2219]
[1758648792620,0.759,4168.8,4168.7,3.6464]
[1758648792919,0.5401,4168.8,4168.7,4.2219]
[1758648793623,0.2218,4168.8,4168.7,4.2219]
[1758648793921,0.5401,4168.8,4168.7,3.9769]
[1758648794224,0.3183,4169.2,4169.1,1.20059]
[1758648794422,0.4403,4170.0,4169.4,0.7691]
[1758648794616,3.2078,4170.1,4169.9,1.20051]
[1758648794818,0.97148,4170.2,4170.1,0.7691]
[1758648795019,3.2078,4170.8,4170.3,0.4386]
[1758648795020,0.2218,4170.4,4170.3,0.4386]
[1758648795219,0.5401,4170.4,4170.3,0.4386]
[1758648795422,0.759,4170.4,4170.3,0.4386]
[1758648795616,0.759,4170.4,4170.3,0.7691]
[1758648796120,0.2218,4170.4,4170.3,0.7691]
[1758648796324,0.43133,4170.6,4170.5,0.7691]
[1758648796522,0.97143,4170.6,4170.5,0.7691]
[1758648796723,0.5401,4170.6,4170.5,0.7691]
[1758648796924,3.2078,4170.8,4170.7,0.3305]
[1758648797118,3.2078,4170.8,4170.7,0.7691]
[1758648797318,3.9668,4170.8,4170.7,0.7691]
[1758648797620,3.9668,4170.8,4170.7,0.246]
[1758648797816,3.9668,4170.8,4170.7,0.4624]
[1758648798016,3.2078,4170.8,4170.7,1.0151]
[1758648798227,0.3183,4171.2,4171.0,0.3305]
[1758648798529,1.20199,4172.0,4171.6,0.7691]
[1758648798530,0.97132,4171.7,4171.6,0.7691]
[1758648798730,0.5401,4171.7,4171.6,1.0151]
[1758648799021,0.2218,4171.7,4171.6,1.0151]
[1758648799222,0.3183,4172.0,4171.8,0.4312]
[1758648799427,0.97126,4172.3,4172.2,0.7691]
[1758648799623,0.2218,4172.3,4172.2,0.7691]
[1758648799924,0.5401,4172.3,4172.2,0.7691]
[1758648800121,0.97123,4172.6,4172.5,0.7691]
[1758648800319,0.43113,4172.6,4172.5,1.0151]
[1758648800631,0.97123,4172.6,4172.5,1.0151]
[1758648800833,1.19013,4172.6,4172.5,0.2164]
[1758648801127,1.19017,4172.2,4172.1,0.2164]
[1758648801332,1.19017,4172.2,4172.0,0.246]
[1758648801533,1.31419,4172.0,4171.9,3.2078]
[1758648802220,1.31419,4172.0,4170.8,0.43131]
[1758648802221,0.124,4171.5,4171.4,3.2078]
[1758648802531,1.31424,4171.5,4171.4,3.4242]
[1758648803120,1.31424,4171.5,4171.4,3.2078]
[1758648803320,0.7392,4171.4,4171.3,0.246]
[1758648803733,1.17049,4171.0,4170.9,3.9476]
[1758648804024,1.17049,4171.0,4170.9,3.8818]
[1758648804217,1.29789,4171.0,4170.9,3.8818]
[1758648805128,1.17055,4170.4,4170.3,0.428]
[1758648805429,0.43135,4170.5,4170.4,0.7398]
[1758648805822,1.29795,4170.5,4170.4,0.2059]
[1758648806231,1.1706,4170.0,4169.9,0.2059]
[1758648806421,1.1706,4170.0,4169.9,0.4519]
[1758648807128,1.298,4170.0,4169.9,0.246]
[1758648807832,1.298,4170.0,4169.9,0.4519]
[1758648811232,1.298,4170.0,4169.9,0.246]
[1758648812236,1.1706,4170.0,4169.9,0.9858]
[1758648813130,3.8595,4170.5,4170.4,0.428]
[1758648813337,4.50574,4170.5,4170.4,0.674]
[1758648813538,4.50574,4170.5,4170.4,0.246]
[1758648814229,4.50574,4170.5,4170.4,0.4519]
[1758648814421,1.29794,4170.5,4170.4,0.9858]
[1758648814826,1.29794,4170.5,4170.4,0.674]
[1758648816036,1.29794,4170.5,4170.4,0.4519]
[1758648816331,0.8666,4170.0,4169.9,0.2059]
[1758648816637,0.8666,4170.0,4169.8,3.4538]
[1758648816638,1.17061,4169.9,4169.8,3.4538]
[1758648817030,1.17061,4169.9,4169.8,3.6597]
[1758648817328,1.17061,4169.9,4169.8,3.4538]
[1758648817930,1.17061,4169.9,4169.8,3.6597]
[1758648818532,1.17061,4169.9,4169.8,0.4519]
[1758648818833,1.0784,4170.4,4169.8,0.4519]
[1758648818834,1.17055,4170.4,4170.3,0.2059]
[1758648819034,0.43139,4170.1,4170.0,0.3118]
[1758648819234,0.95569,4170.1,4170.0,0.9358]
[1758648819631,0.2048,4170.1,4170.0,1.3672]
[1758648819837,3.3352,4170.5,4170.0,1.3672]
[1758648819838,3.6547,4170.5,4170.2,0.7398]
[1758648820039,0.43139,4170.1,4170.0,0.196]
[1758648820343,1.17059,4170.1,4170.0,0.196]
[1758648820641,1.17059,4170.1,4170.0,0.4019]
[1758648820931,1.17064,4169.6,4169.5,0.63734]
[1758648821134,1.17064,4169.6,4169.5,0.88334]
[1758648821722,0.7392,4169.6,4169.5,1.10544]
[1758648821923,0.7392,4169.6,4169.5,1.41724]
[1758648822132,0.3195,4169.8,4169.7,0.7398]
[1758648822337,0.75092,4169.8,4169.7,1.17123]
[1758648822528,0.3195,4169.8,4169.7,1.17123]
[1758648822930,3.54,4170.5,4170.4,0.2059]
[1758648823131,4.29084,4170.5,4170.4,0.428]
[1758648823433,3.2078,4170.5,4170.4,1.17115]
[1758648823637,0.7392,4170.9,4170.8,0.7398]
[1758648823835,1.1705,4170.9,4170.8,0.7398]
[1758648824133,1.1705,4170.9,4170.8,0.428]
[1758648824435,1.1705,4170.9,4170.8,0.2059]
[1758648824625,1.1705,4170.9,4170.1,1.07846]
[1758648824626,0.43138,4170.2,4170.1,0.2059]
[1758648824823,0.85108,4170.2,4170.1,0.4519]
[1758648825027,0.85108,4170.2,4170.1,0.246]
[1758648825434,1.17058,4170.2,4170.1,0.246]
[1758648826335,1.17058,4170.2,4169.4,0.2059]
[1758648826336,0.2149,4169.5,4169.4,0.2059]
[1758648826530,0.3195,4169.1,4168.8,3.2078]
[1758648826728,0.5243,4169.0,4168.9,1.41731]
[1758648827435,0.63626,4169.4,4169.3,0.63737]
[1758648827632,1.17066,4169.4,4169.3,0.2059]
[1758648827832,1.17066,4169.4,4169.3,0.63737]
[1758648828039,0.7392,4169.4,4169.3,0.63737]
[1758648829037,1.17066,4169.4,4169.3,1.17047]
[1758648829241,0.2149,4169.3,4169.2,0.246]
[1758648829441,1.17067,4169.3,4169.2,0.246]
[1758648830437,1.17067,4169.3,4168.5,0.1218]
[1758648830438,0.2048,4168.4,4168.3,3.6358]
[1758648830739,0.95578,4169.2,4169.1,0.2221]
[1758648830938,3.2078,4169.3,4169.2,1.17128]
[1758648831253,4.16357,4169.3,4169.2,0.7398]
[1758648831437,4.37847,4169.3,4169.2,0.428]
[1758648831745,4.37847,4169.3,4169.2,1.10548]
[1758648831938,4.37847,4169.3,4169.2,0.428]
[1758648832145,0.5589,4169.0,4168.9,0.2059]
[1758648832339,0.9786,4169.0,4168.9,0.4519]
[1758648832746,1.2981,4169.0,4168.9,0.4519]
[1758648833944,0.7256,4168.4,4168.3,3.4184]
[1758648834141,0.7256,4168.4,4168.3,4.36287]
[1758648834142,0.94940954,4168.4,4168.3,4.36287]
[1758648835542,0.44110954,4168.4,4168.3,4.36287]
[1758648835751,0.43151,4168.9,4168.8,0.4158]
[1758648836047,0.95391,4168.9,4168.8,0.7235]
[1758648836745,0.5224,4168.9,4168.8,1.15502]
[1758648837142,0.43149,4169.1,4169.0,0.5129]
[1758648837346,0.43149,4169.1,4169.0,0.7235]
[1758648837647,0.73659,4169.1,4169.0,1.155]
[1758648837951,0.3051,4169.1,4169.0,1.155]
[1758648838151,0.73659,4169.1,4169.0,1.401]
[1758648838543,1.15709,4169.1,4169.0,0.6618]
[1758648838944,1.15709,4169.1,4169.0,0.4566]
[1758648840145,1.15709,4169.1,4169.0,0.246]
[1758648840350,0.7256,4168.4,4168.3,3.9313]
[1758648840550,0.7256,4168.4,4168.3,4.60887]
[1758648841043,0.2173,4168.7,4168.6,0.43153]
[1758648841252,1.15713,4168.7,4168.6,0.84733]
[1758648841442,1.15713,4168.7,4168.6,0.4158]
[1758648841640,0.7256,4168.5,4168.4,1.15506]
[1758648841847,0.7256,4168.5,4168.3,3.4538]
[1758648841848,0.2173,4168.8,4168.7,0.84732]
[1758648842052,1.15712,4168.8,4168.7,0.6618]
[1758648842440,1.15712,4168.8,4168.7,0.4566]
[1758648843753,1.15712,4168.8,4168.7,1.09333]
[1758648844254,0.7256,4168.8,4168.7,1.40023]
[1758648844441,0.6488,4169.0,4168.9,0.9444]
[1758648844751,0.9539,4169.0,4168.9,1.155]
[1758648845144,1.1571,4169.0,4168.9,0.7235]
[1758648845348,1.2805,4169.0,4168.9,0.7235]
[1758648845653,0.64885,4168.5,4168.4,0.94986]
[1758648845953,0.849,4168.5,4168.4,0.88716]
[1758648846148,0.849,4168.5,4168.4,0.4556]
[1758648846149,1.28055,4168.5,4168.4,0.4556]
[1758648846451,1.28055,4168.5,4168.4,0.88716]
[1758648846654,1.28055,4168.5,4168.4,0.4556]
[1758648846853,1.28055,4168.5,4168.4,0.88716]
[1758648847155,1.08936979,4168.5,4168.4,1.40006]
[1758648847351,1.08936979,4168.5,4168.4,1.09236]
[1758648847559,0.849,4168.5,4168.4,1.09236]
[1758648847749,0.849,4168.5,4168.4,0.84736]
[1758648848056,1.08937231,4168.5,4168.4,1.09236]
[1758648848257,1.08937231,4168.5,4168.4,0.9685]
[1758648848457,1.28055,4168.5,4168.4,0.4556]
[1758648848754,1.52092108,4168.5,4168.4,0.4556]
[1758648848946,1.52092108,4168.5,4168.0,0.3077]
[1758648848947,1.15719,4168.1,4168.0,0.2106]
[1758648849256,1.39756108,4168.1,4168.0,0.4556]
[1758648849557,1.39754411,4168.1,4168.0,0.4556]
[1758648850054,0.96595411,4168.1,4168.0,0.6608]
[1758648850658,0.4316,4168.0,4167.9,0.02399319]
[1758648850859,1.52095411,4168.0,4167.9,0.26899319]
[1758648851357,1.08935411,4168.0,4167.9,0.70060319]
[1758648851551,1.08935411,4168.0,4167.9,0.26899319]
[1758648851752,1.08935411,4168.0,4167.9,1.44820319]
[1758648853153,1.52095411,4168.0,4167.9,0.47959319]
[1758648853362,1.09465411,4168.0,4167.9,1.01659319]
[1758648853560,1.52625411,4168.0,4167.9,0.26899319]
[1758648853764,1.09465411,4168.0,4167.9,0.90840319]
[1758648854061,1.52625411,4168.0,4167.9,0.90840319]
[1758648854357,1.09465411,4168.0,4167.9,0.90840319]
[1758648854757,1.52625411,4168.0,4167.9,0.66340319]
[1758648855060,1.52625411,4168.0,4167.9,0.47679319]
[1758648855857,0.96595411,4168.0,4167.9,1.44540319]
[1758648856055,0.24035411,4168.0,4167.9,1.44540319]
[1758648857557,0.24035411,4168.0,4167.9,6.44540319]
[1758648857763,0.5088,4168.6,4168.5,1.17634]
[1758648858058,0.5088,4168.6,4168.5,1.42134]
[1758648858767,3.2078,4169.4,4168.5,1.42134]
[1758648858768,1.15571,4168.9,4168.8,0.7448]
[1758648858962,1.15571,4168.9,4168.8,0.245]
[1758648859162,0.7242,4168.4,4168.3,3.84717]
[1758648859466,1.15576,4168.4,4168.3,4.09217]
[1758648859668,0.5088,4168.4,4168.3,4.62917]
[1758648860160,0.7242,4168.4,4167.8,3.2078]
[1758648860466,1.2845,4168.0,4167.9,0.43659319]
[1758648860668,0.8529,4168.0,4167.9,1.11320319]
[1758648860966,1.2845,4168.0,4167.9,1.01379319]
[1758648861166,1.2845,4168.0,4167.9,0.68159319]
[1758648861666,0.7242,4168.0,4167.9,1.44540319]
[1758648862067,0.7242,4168.0,4167.9,1.20040319]
[1758648862265,1.1558,4168.0,4167.9,1.01379319]
[1758648862461,0.7242,4168.0,4167.9,1.44540319]
[1758648862863,1.2845,4168.0,4167.9,0.68159319]
[1758648863360,0.8529,4168.0,4167.9,1.44000319]
[1758648863565,0.7242,4168.0,4167.9,1.44000319]
[1758648863868,1.1558,4168.0,4167.9,1.00839319]
[1758648864167,1.2828,4168.0,4167.9,1.00839319]
[1758648864361,1.2828,4168.0,4167.9,1.44000319]
[1758648864870,0.8512,4168.0,4167.9,1.00839319]
[1758648865368,1.2828,4168.0,4167.9,1.00839319]
[1758648865666,1.2828,4168.0,4167.9,0.68159319]
[1758648867566,1.2828,4168.0,4167.9,0.23179319]
[1758648867765,1.2828,4168.0,4167.9,0.26899319]
[1758648869754,1.52046818,4168.0,4167.9,0.26899319]
[1758648869958,1.52046922,4168.0,4167.9,0.26899319]
[1758648871755,1.52046922,4168.0,4167.9,0.48699319]
[1758648872764,0.43168,4167.3,4167.2,0.02055861]
[1758648873072,0.97039251,4167.3,4167.2,0.02055861]
[1758648873275,1.40207251,4167.3,4167.2,0.23855861]
[1758648874670,1.40207251,4167.3,4167.2,0.02055861]
[1758648874968,0.97039251,4167.3,4167.2,0.02055861]
[1758648875172,1.40206251,4167.3,4167.2,0.02055861]
[1758648875573,0.97039251,4167.3,4167.2,0.02055861]
[1758648876772,0.97039251,4167.3,4166.0,2.12645513]
[1758648876773,0.5486,4166.1,4166.0,2.12645513]
[1758648876973,0.66036922,4166.1,4166.0,0.8765]
[1758648877173,0.23766922,4166.1,4166.0,4.0843]
[1758648877472,0.23766922,4166.1,4166.0,3.7575]
[1758648877775,0.23766922,4166.1,4166.0,8.7575]
[1758648877981,0.4227,4166.2,4166.1,0.752]
[1758648878172,0.98908658,4166.2,4166.1,0.5448]
[1758648878372,0.98908658,4166.2,4166.1,0.752]
[1758648878373,0.23818658,4166.2,4166.1,0.752]
[1758648878672,0.23818658,4166.2,4166.1,0.4252]
[1758648878863,0.23818658,4166.2,4166.1,5.4252]
[1758648879068,0.23818658,4166.2,4166.1,5.752]
[1758648879478,0.23818658,4166.2,4166.1,0.752]
[1758648880275,0.23818658,4166.2,4166.1,5.752]
[1758648880477,3.8418,4167.1,4167.0,0.8765]
[1758648880674,3.8418,4167.1,4167.0,1.1225]
[1758648880971,4.0622,4167.1,4167.0,1.1225]
[1758648881574,3.2078,4167.1,4167.0,1.1225]
[1758648882071,4.06214,4167.6,4167.5,0.8765]
[1758648882272,4.39034,4167.6,4167.5,0.5728]
[1758648882775,4.39034,4167.6,4167.5,0.7908]
[1758648883478,4.39034,4167.6,4166.8,0.43173]
[1758648883479,1.18259,4167.2,4166.8,0.43173]
[1758648883675,0.4227,4167.0,4166.9,0.7498]
[1758648883978,0.7509,4167.0,4166.9,0.246]
[1758648884583,0.7509,4167.0,4166.9,0.7908]
[1758648886182,0.7509,4167.0,4166.9,0.998]
[1758648887085,0.4227,4167.0,4166.9,0.998]
[1758648887581,0.2023,4167.0,4166.9,0.998]
[1758648887783,0.2023,4167.0,4166.9,1.42972]
[1758648888984,0.2023,4167.0,4166.9,1.42892]
[1758648889883,0.43166,4167.5,4167.2,0.43168]
[1758648890186,0.63396,4167.5,4167.4,0.752]
[1758648890583,0.85436,4167.5,4167.4,0.752]
[1758648890881,0.85436,4167.5,4167.3,0.246]
[1758648890882,0.63396,4167.4,4167.3,0.246]
[1758648891085,0.4227,4167.4,4167.3,1.10287]
[1758648891310,0.4227,4167.4,4167.3,1.42967]
[1758648891985,0.85436,4167.4,4167.3,0.998]
[1758648892188,0.4227,4167.4,4167.3,1.42967]
[1758648892382,0.65768235,4167.4,4167.3,1.42967]
[1758648892581,1.08934235,4167.4,4167.3,0.998]
[1758648892784,0.23498235,4167.4,4167.3,1.42967]
[1758648896085,1.07814235,4167.4,4167.3,0.998]
[1758648896290,1.39954235,4167.4,4167.3,0.7908]
[1758648898187,1.39954235,4167.4,4167.3,0.246]
[1758648898383,0.96788235,4167.4,4167.0,0.1245]
[1758648898590,1.1646,4167.1,4167.0,0.8491]
[1758648898796,0.64648235,4167.1,4167.0,1.52681]
[1758648899187,0.23498235,4167.1,4167.0,1.52681]
[1758648899689,0.43167,4167.3,4167.0,1.22281]
[1758648899888,0.23498235,4167.2,4167.1,1.1563]
[1758648900586,3.2078,4167.6,4167.5,0.8567]
[1758648900788,3.44319136,4167.6,4167.5,1.1027]
[1758648901093,3.87483136,4167.6,4167.5,1.1027]
[1758648901291,3.44319136,4167.6,4167.5,1.53435]
[1758648901681,0.23539136,4167.6,4167.5,1.53435]
[1758648901890,0.23539136,4167.6,4167.5,1.1027]
[1758648902089,0.43929136,4167.6,4167.5,1.53435]
[1758648902791,0.23539136,4167.6,4167.5,1.53435]
[1758648904594,1.39993136,4167.6,4167.5,1.1027]
[1758648904896,1.39993136,4167.6,4167.1,3.2078]
[1758648904897,1.16457,4167.3,4167.2,0.304]
[1758648905193,1.39996136,4167.3,4167.2,0.9706]
[1758648905793,0.43168,4167.2,4167.1,3.2078]
[1758648905991,1.39997136,4167.2,4167.1,3.4538]
[1758648906390,1.39997136,4167.2,4167.1,0.7632]
[1758648907300,1.3926807,4167.2,4167.1,0.7632]
[1758648907995,1.16464,4166.7,4166.6,3.725]
[1758648908196,1.16464,4166.7,4166.6,0.7632]
[1758648908197,1.3927407,4166.7,4166.6,0.7632]
[1758648908495,1.3927407,4166.7,4166.1,3.2078]
[1758648908496,0.63569,4166.3,4166.2,0.304]
[1758648908800,1.3927907,4166.3,4166.2,0.246]
[1758648909000,0.4318,4166.1,4165.7,3.2078]
[1758648909201,1.0714007,4166.1,4166.0,1.0951]
[1758648909602,1.3928007,4166.1,4166.0,1.0951]
[1758648910396,0.9610007,4166.1,4166.0,1.0951]
[1758648910594,1.0714007,4166.1,4166.0,1.0951]
[1758648910795,0.6396007,4166.1,4166.0,1.0951]
[1758648910994,0.9610007,4166.1,4166.0,1.0951]
[1758648911800,0.9610007,4166.1,4166.0,0.55]
[1758648911994,0.9610007,4166.1,4166.0,0.7738]
[1758648912393,0.9610007,4166.1,4165.5,0.3303]
[1758648912394,0.43185,4165.6,4165.5,0.3303]
[1758648912592,0.85268,4165.3,4165.2,3.4316]
[1758648912794,0.6489007,4165.3,4165.2,3.8984]
[1758648912990,0.6489007,4165.3,4165.2,4.2287]
[1758648913599,0.6489007,4165.3,4165.2,0.7749]
[1758648913816,0.9746007,4165.3,4165.2,1.0209]
[1758648914006,0.6489007,4165.3,4165.2,1.0209]
[1758648914209,0.9746007,4165.3,4165.2,0.8001]
[1758648914502,0.9746007,4165.3,4165.2,1.0209]
[1758648914706,0.6489007,4165.3,4165.2,1.0209]
[1758648915107,0.9746007,4165.3,4165.2,1.0209]
[1758648915307,0.9746007,4165.3,4165.2,0.5541]
[1758648915503,0.6489007,4165.3,4165.2,0.7749]
[1758648915703,0.2281007,4165.3,4165.2,0.7749]
[1758648916405,0.4426007,4165.3,4165.2,0.7749]
[1758648916600,0.9746007,4165.3,4165.2,0.7749]
[1758648916801,0.6489007,4165.3,4165.2,0.7749]
[1758648916996,0.6489007,4165.3,4165.2,1.0199]
[1758648917203,0.6489007,4165.3,4165.2,1.45179]
[1758648917512,1.0807807,4165.3,4165.2,1.0199]
[1758648917710,0.4426007,4165.3,4165.2,1.0199]
[1758648917901,0.8744807,4165.3,4165.2,1.0199]
[1758648918411,0.2145,4165.3,4165.2,1.45179]
[1758648918600,0.43188,4165.3,4165.2,1.0199]
[1758648918803,0.87345254,4165.3,4165.2,1.0199]
[1758648919001,0.2145,4165.3,4165.2,1.45179]
[1758648919206,0.64638,4165.3,4165.2,1.0199]
[1758648919399,0.43191,4165.0,4164.7,3.63974]
[1758648919603,0.4208,4165.0,4164.9,0.7749]
[1758648920300,5.7465,4165.0,4164.8,0.245]
[1758648920500,0.64648,4164.4,4164.3,0.2238]
[1758648920705,1.17848,4164.4,4164.3,0.6896]
[1758648920906,0.2145,4163.8,4163.7,3.6524]
[1758648921104,0.2145,4163.8,4163.7,3.8984]
[1758648921410,0.7465,4163.8,4163.7,3.8984]
[1758648921714,0.97317653,4163.8,4163.7,3.8984]
[1758648921901,0.97317653,4163.8,4163.7,3.66332528]
[1758648922103,0.97317653,4163.8,4163.7,0.23472528]
[1758648922312,0.3257,4162.9,4162.1,3.2078]
[1758648922505,0.4208,4161.7,4161.6,0.5511]
[1758648922704,0.3257,4162.7,4162.6,0.3303]
[1758648922911,0.3257,4162.7,4162.5,0.4446]
[1758648922912,0.4321,4163.2,4163.1,0.2238]
[1758648923108,0.44088277,4163.2,4163.1,0.7749]
[1758648923410,0.2062,4162.8,4162.7,0.4674]
[1758648923610,0.2062,4162.8,4162.7,0.7844]
[1758648923611,0.63834,4162.8,4162.7,0.7844]
[1758648923810,0.2062,4162.8,4162.7,1.01607821]
[1758648924011,0.3268,4163.0,4162.7,1.01607821]
[1758648924210,0.1291,4163.5,4162.9,3.2078]
[1758648924211,0.75889,4163.3,4162.9,3.2078]
[1758648924414,0.43209,4163.3,4163.2,0.4324]
[1758648924610,0.96509,4163.3,4163.2,0.2214]
[1758648924808,1.17869,4163.3,4163.2,0.77007821]
[1758648925003,1.17869,4163.3,4163.2,0.33767821]